[Event "WYCC 2018 G14"]
[Site "Halkidiki"]
[Date "2018.10.26"]
[Round "7"]
[White "Galvan Cipriani, Viviana"]
[Black "Zaritovskaja, Margarita"]
[Result "1/2-1/2"]
[ECO "A34"]
[WhiteElo "2109"]
[BlackElo "1731"]
[Annotator "NA"]
[PlyCount "66"]
[EventDate "2018.10.20"]
[EventType "swiss"]
[EventCountry "GRE"]
[SourceTitle "playchess.com"]
[Source "ChessBase"]
[SourceQuality "1"]
[TimeControl "40/5400+30:1800+30"]

1. c4 {[%emt 0:00:00]} Nf6 {[%emt 0:00:23]} 2. Nc3 {[%emt 0:00:23]} c5 {[%emt 0:01:17]} 3. g3 {[%emt 0:00:14]} g6 {[%emt 0:00:55]} 4. Bg2 {[%emt 0:00:10]} Bg7 {[%emt 0:00:06]} 5. a3 {[%emt 0:03:09]} Nc6 {[%emt 0:01:53]} 6. Rb1 {[%emt 0:04:33]} a5 {[%emt 0:03:25]} 7. e3 {[%emt 0:06:33]} d6 {[%emt 0:03:52]} 8. Nge2 {[%emt 0:02:00]} Bd7 {[%emt 0:08:19]} 9. O-O {[%emt 0:06:53]} h5 {[%emt 0:01:50]} 10. h3 {[%emt 0:06:03]} h4 {[%emt 0:02:17]} 11. g4 {[%emt 0:00:07]} Nxg4 {[%emt 0:08:41]} 12. hxg4 {[%emt 0:01:15]} Bxg4 {[%emt 0:00:09]} 13. Qb3 {[%emt 0:14:22]} Rb8 {[%emt 0:09:43]} 14. f3 Bd7 {[%emt 0:10:02]} 15. Kf2 {[%emt 0:13:02]} Ne5 {[%emt 0:13:57]} 16. Nf4 {[%emt 0:10:02]} h3 {[%emt 0:04:15]} 17. Bh1 {[%emt 0:00:08]} e6 {[%emt 0:05:38]} 18. Ke2 {[%emt 0:03:48]} a4 {[%emt 0:08:18]} 19. Qa2 {[%emt 0:09:23]} b5 {[%emt 0:04:15]} 20. cxb5 {[%emt 0:00:34]} Qb6 {[%emt 0:00:40]} 21. b4 {[%emt 0:09:19]} Bxb5+ {[%emt 0:00:29]} 22. Nxb5 {[%emt 0:00:14]} Qxb5+ {[%emt 0:00:05]} 23. d3 {[%emt 0:01:03]} c4 {[%emt 0:02:23]} 24. dxc4 {[%emt 0:01:40]} Nxc4 {[%emt 0:00:22]} 25. Nd3 {[%emt 0:02:44]} Rc8 {[%emt 0:02:34]} 26. f4 {[%emt 0:00:54]} h2 {[%emt 0:01:40]} 27. Bd2 {[%emt 0:02:24]} d5 {[%emt 0:03:34]} 28. Rfc1 {[%emt 0:00:33]} O-O {[%emt 0:00:50]} 29. Kf2 {[%emt 0:00:33]} d4 {[%emt 0:00:30]} 30. Nc5 {[%emt 0:00:47]} dxe3+ {[%emt 0:00:32]} 31. Bxe3 {[%emt 0:00:06]} Nxe3 {[%emt 0:00:12]} 32. Kxe3 {[%emt 0:00:04]} e5 {[%emt 0:00:29]} 33. Qxh2 exf4+ 1/2-1/2

[Event "WYCC 2018 G14"]
[Site "Halkidiki"]
[Date "2018.10.26"]
[Round "7"]
[White "Krasteva, Beloslava"]
[Black "Lehaci, Miruna-Daria"]
[Result "1/2-1/2"]
[ECO "E44"]
[WhiteElo "2089"]
[BlackElo "1933"]
[Annotator "NA"]
[PlyCount "129"]
[EventDate "2018.10.20"]
[EventType "swiss"]
[EventCountry "GRE"]
[SourceTitle "playchess.com"]
[Source "ChessBase"]
[SourceQuality "1"]
[TimeControl "40/5400+30:1800+30"]

1. d4 {[%emt 0:00:00]} Nf6 {[%emt 0:00:00]} 2. c4 {[%emt 0:00:00]} e6 {[%emt 0:00:00]} 3. Nc3 {[%emt 0:00:06]} Bb4 {[%emt 0:00:00]} 4. e3 {[%emt 0:00:21]} b6 {[%emt 0:00:00]} 5. Nge2 {[%emt 0:00:42]} c5 {[%emt 0:00:00]} 6. a3 {[%emt 0:00:41]} Ba5 {[%emt 0:00:00]} 7. Rb1 {[%emt 0:00:28]} Na6 {[%emt 0:00:03]} 8. g3 {[%emt 0:01:05]} Bb7 {[%emt 0:00:11]} 9. d5 {[%emt 0:00:26]} b5 {[%emt 0:00:21]} 10. Bg2 {[%emt 0:03:25]} bxc4 {[%emt 0:02:14]} 11. O-O {[%emt 0:01:08]} O-O {[%emt 0:10:48]} 12. e4 {[%emt 0:01:21]} exd5 {[%emt 0:05:43]} 13. e5 {[%emt 0:00:24]} Ng4 {[%emt 0:01:50]} 14. Bxd5 {[%emt 0:00:16]} Bxd5 {[%emt 0:15:22]} 15. Qxd5 {[%emt 0:01:00]} Nc7 {[%emt 0:01:05]} 16. Qe4 {[%emt 0:04:48]} f5 {[%emt 0:02:01]} 17. Qxc4+ {[%emt 0:01:54]} Kh8 {[%emt 0:04:56]} 18. Qxc5 {[%emt 0:07:57]} Bb6 {[%emt 0:02:17]} 19. Qd6 {[%emt 0:00:31]} Re8 {[%emt 0:01:49]} 20. Na4 {[%emt 0:05:15]} Nxe5 {[%emt 0:04:15]} 21. Nxb6 {[%emt 0:00:57]} Re6 {[%emt 0:04:21]} 22. Qd1 {[%emt 0:03:12]} axb6 {[%emt 0:02:45]} 23. Nf4 {[%emt 0:06:24]} Re8 {[%emt 0:02:06]} 24. Be3 {[%emt 0:00:58]} Ra6 {[%emt 0:01:39]} 25. Bd4 {[%emt 0:08:45]} d6 {[%emt 0:03:47]} 26. Qh5 {[%emt 0:05:57]} Nb5 {[%emt 0:04:40]} 27. Bxe5 {[%emt 0:02:56]} dxe5 {[%emt 0:00:05]} 28. Rfe1 {[%emt 0:01:16]} Kg8 {[%emt 0:05:34]} 29. Qxf5 {[%emt 0:05:00]} Nd4 {[%emt 0:00:13]} 30. Qd3 {[%emt 0:08:59]} Qa8 {[%emt 0:01:41]} 31. Re4 {[%emt 0:01:43]} Ra4 {[%emt 0:03:37]} 32. Rbe1 {[%emt 0:02:40]} Rf8 {[%emt 0:02:18]} 33. h4 {[%emt 0:04:38]} b5 {[%emt 0:00:47]} 34. Rxe5 {[%emt 0:05:36]} Nf3+ {[%emt 0:00:20]} 35. Kf1 {[%emt 0:00:10]} Nxe1 {[%emt 0:02:40]} 36. Kxe1 {[%emt 0:00:19]} Rd8 {[%emt 0:03:14]} 37. Nd5 {[%emt 0:02:20]} Ra6 {[%emt 0:04:03]} 38. Qe4 {[%emt 0:03:33]} Rad6 {[%emt 0:04:16]} 39. Ne7+ {[%emt 0:03:57]} Kf8 {[%emt 0:04:17]} 40. Rf5+ {[%emt 0:00:00]} Rf6 {[%emt 0:00:00]} 41. Rxf6+ {[%emt 0:06:52]} gxf6 {[%emt 0:00:16]} 42. Qxa8 {[%emt 0:00:06]} Rxa8 {[%emt 0:00:03]} 43. Nd5 {[%emt 0:00:15]} Kf7 {[%emt 0:00:14]} 44. Nc3 {[%emt 0:05:37]} Rb8 {[%emt 0:00:35]} 45. Kd2 {[%emt 0:04:11]} f5 {[%emt 0:00:56]} 46. Ne2 {[%emt 0:03:00]} Ke6 {[%emt 0:03:32]} 47. Nd4+ {[%emt 0:01:41]} Kf6 {[%emt 0:00:17]} 48. f3 {[%emt 0:03:00]} Rg8 {[%emt 0:06:10]} 49. Ne2 {[%emt 0:02:06]} Ke5 {[%emt 0:05:01]} 50. Ke3 {[%emt 0:01:42]} h6 {[%emt 0:02:24]} 51. Kd3 {[%emt 0:01:05]} Rd8+ {[%emt 0:00:57]} 52. Kc2 {[%emt 0:01:08]} Rd7 {[%emt 0:00:20]} 53. Nc3 {[%emt 0:02:57]} Kd4 {[%emt 0:03:12]} 54. Kd2 {[%emt 0:00:47]} Kc4+ {[%emt 0:02:08]} 55. Ke3 {[%emt 0:01:33]} Rc7 {[%emt 0:02:25]} 56. g4 {[%emt 0:04:54]} fxg4 {[%emt 0:01:30]} 57. fxg4 {[%emt 0:00:05]} Rc5 {[%emt 0:02:36]} 58. Ne4 {[%emt 0:00:30]} Re5 {[%emt 0:01:00]} 59. Kf4 {[%emt 0:00:14]} Re7 {[%emt 0:00:20]} 60. Nd6+ {[%emt 0:03:32]} Kc5 {[%emt 0:00:15]} 61. Nf5 {[%emt 0:00:04]} Re6 {[%emt 0:00:22]} 62. g5 {[%emt 0:00:49]} hxg5+ {[%emt 0:00:18]} 63. hxg5 {[%emt 0:00:41]} Kc4 {[%emt 0:01:16]} 64. Ne3+ {[%emt 0:01:28]} Kb3 {[%emt 0:00:21]} 65. Nf5 {[%emt 0:00:08]} 1/2-1/2

[Event "WYCC 2018 G14"]
[Site "Halkidiki"]
[Date "2018.10.26"]
[Round "7"]
[White "Jyothsna L"]
[Black "Wen, Yili"]
[Result "1/2-1/2"]
[ECO "A01"]
[WhiteElo "2060"]
[BlackElo "2083"]
[Annotator "NA"]
[PlyCount "60"]
[EventDate "2018.10.20"]
[EventType "swiss"]
[EventCountry "GRE"]
[SourceTitle "playchess.com"]
[Source "ChessBase"]
[SourceQuality "1"]
[TimeControl "40/5400+30:1800+30"]

1. b3 {[%emt 0:00:37]} d5 {[%emt 0:00:00]} 2. Bb2 {[%emt 0:00:18]} Nf6 {[%emt 0:00:20]} 3. Nf3 {[%emt 0:00:19]} Bf5 {[%emt 0:00:39]} 4. g3 {[%emt 0:00:35]} e6 {[%emt 0:02:01]} 5. Bg2 {[%emt 0:00:23]} h6 {[%emt 0:00:10]} 6. d3 {[%emt 0:00:16]} Be7 {[%emt 0:01:39]} 7. Nbd2 {[%emt 0:00:31]} Bh7 {[%emt 0:01:49]} 8. O-O {[%emt 0:00:27]} O-O {[%emt 0:00:04]} 9. Ne5 {[%emt 0:01:06]} c6 {[%emt 0:07:54]} 10. e4 $11 {[%emt 0:03:55] LiveBook: 17 Games} Nbd7 {[%emt 0:03:15]} 11. Nxd7 {[%emt 0:01:48]} Nxd7 {[%emt 0:01:36]} 12. Qe2 {[%emt 0:01:02]} Re8 {[%emt 0:04:30]} 13. Rfd1 {[%emt 0:05:34]} Qb6 {[%emt 0:03:20]} 14. Rac1 {[%emt 0:05:34]} a5 {[%emt 0:03:21]} 15. a3 {[%emt 0:12:20]} Rad8 {[%emt 0:01:08]} 16. Rb1 {[%emt 0:09:15]} d4 {[%emt 0:18:24]} 17. f4 {[%emt 0:05:43]} Qa7 {[%emt 0:09:14]} 18. Qf2 {[%emt 0:08:53]} e5 {[%emt 0:08:22]} 19. Bh3 {[%emt 0:05:38]} a4 {[%emt 0:02:30]} 20. b4 {[%emt 0:11:13]} b5 {[%emt 0:07:53]} 21. Nf3 {[%emt 0:04:56]} Bf6 {[%emt 0:07:57]} 22. c3 {[%emt 0:05:34]} exf4 {[%emt 0:11:15]} 23. cxd4 {[%emt 0:02:08]} fxg3 {[%emt 0:00:15]} 24. hxg3 {[%emt 0:01:33]} Nf8 {[%emt 0:00:35]} 25. Rbc1 {[%emt 0:01:32]} Qb6 {[%emt 0:00:35]} 26. Rc5 {[%emt 0:06:56]} Ne6 {[%emt 0:00:29]} 27. Bxe6 {[%emt 0:00:25]} Rxe6 {[%emt 0:00:32]} 28. Rdc1 {[%emt 0:01:07]} Be7 {[%emt 0:00:08]} 29. R5c2 {[%emt 0:00:10]} Bd6 {[%emt 0:02:04]} 30. Kg2 {[%emt 0:01:44]} Bb8 1/2-1/2

[Event "WYCC 2018 G14"]
[Site "Halkidiki"]
[Date "2018.10.26"]
[Round "7"]
[White "Mironenko, Galina"]
[Black "Obada, Ema"]
[Result "1-0"]
[ECO "A15"]
[WhiteElo "2053"]
[BlackElo "1811"]
[Annotator "NA"]
[PlyCount "85"]
[EventDate "2018.10.20"]
[EventType "swiss"]
[EventCountry "GRE"]
[SourceTitle "playchess.com"]
[Source "ChessBase"]
[SourceQuality "1"]
[TimeControl "40/5400+30:1800+30"]

1. c4 {[%emt 0:00:00]} Nf6 {[%emt 0:00:00]} 2. g3 {[%emt 0:00:00]} e6 {[%emt 0:00:22]} 3. Bg2 {[%emt 0:00:00]} c5 {[%emt 0:00:44]} 4. Nf3 {[%emt 0:02:03]} b6 {[%emt 0:05:41]} 5. O-O {[%emt 0:02:35]} Bb7 {[%emt 0:00:11]} 6. b3 {[%emt 0:00:32]} Be7 {[%emt 0:01:00]} 7. Bb2 {[%emt 0:00:44]} O-O {[%emt 0:00:32]} 8. Nc3 {[%emt 0:01:05]} d5 {[%emt 0:04:36]} 9. e3 {[%emt 0:03:31]} Nbd7 {[%emt 0:05:08]} 10. Qe2 {[%emt 0:03:07]} a6 {[%emt 0:04:24]} 11. a4 {[%emt 0:06:53]} Qc7 {[%emt 0:01:39]} 12. Ne1 {[%emt 0:07:34]} Rfd8 {[%emt 0:07:22]} 13. f4 {[%emt 0:05:21]} d4 {[%emt 0:09:19]} 14. Nd1 {[%emt 0:10:04]} dxe3 {[%emt 0:06:58]} 15. Nxe3 {[%emt 0:01:47]} Bxg2 {[%emt 0:02:18]} 16. N1xg2 {[%emt 0:03:33]} Nb8 {[%emt 0:06:27]} 17. f5 {[%emt 0:07:08]} e5 {[%emt 0:05:47]} 18. g4 {[%emt 0:05:41]} Qd6 {[%emt 0:13:30]} 19. g5 {[%emt 0:05:18]} Nfd7 {[%emt 0:03:56]} 20. f6 {[%emt 0:08:24]} Bxf6 {[%emt 0:08:44]} 21. gxf6 {[%emt 0:04:29]} Nxf6 {[%emt 0:00:44]} 22. Nf5 {[%emt 0:01:30]} Qe6 {[%emt 0:04:02]} 23. Qxe5 {[%emt 0:02:38]} Qxe5 {[%emt 0:02:51]} 24. Bxe5 {[%emt 0:00:08]} Nc6 {[%emt 0:00:41]} 25. Bxf6 {[%emt 0:03:34]} gxf6 {[%emt 0:00:04]} 26. Nfe3 {[%emt 0:02:30]} Rxd2 {[%emt 0:01:14]} 27. Rxf6 {[%emt 0:00:29]} Nd4 {[%emt 0:01:23]} 28. Rxb6 {[%emt 0:02:38]} Rd8 {[%emt 0:01:28]} 29. Rf1 {[%emt 0:03:57]} Ne2+ {[%emt 0:01:13]} 30. Kh1 {[%emt 0:00:29]} R2d6 {[%emt 0:00:58]} 31. Rxd6 {[%emt 0:02:06]} Rxd6 {[%emt 0:00:07]} 32. Nd5 {[%emt 0:01:16]} Rh6 {[%emt 0:00:59]} 33. Re1 {[%emt 0:01:30]} Nd4 {[%emt 0:00:37]} 34. Re3 {[%emt 0:00:47]} a5 {[%emt 0:00:44]} 35. Ngf4 {[%emt 0:02:05]} Kf8 {[%emt 0:00:37]} 36. Kg2 {[%emt 0:01:04]} Rh4 {[%emt 0:00:36]} 37. Rc3 {[%emt 0:00:56]} Rg4+ {[%emt 0:00:33]} 38. Kf2 {[%emt 0:00:24]} f5 {[%emt 0:00:35]} 39. h3 {[%emt 0:00:32]} Rg5 {[%emt 0:00:23]} 40. Rd3 {[%emt 0:00:00]} Kf7 {[%emt 0:00:00]} 41. Re3 {[%emt 0:05:05]} h5 {[%emt 0:04:25]} 42. Re7+ {[%emt 0:01:43]} Kf8 {[%emt 0:00:36]} 43. Rh7 {[%emt 0:03:55]} 1-0

[Event "WYCC 2018 G14"]
[Site "Halkidiki"]
[Date "2018.10.26"]
[Round "7"]
[White "Wikar, Martyna"]
[Black "Bardorz, Jana"]
[Result "1-0"]
[ECO "C50"]
[WhiteElo "2024"]
[BlackElo "1810"]
[Annotator "NA"]
[PlyCount "105"]
[EventDate "2018.10.20"]
[EventType "swiss"]
[EventCountry "GRE"]
[SourceTitle "playchess.com"]
[Source "ChessBase"]
[SourceQuality "1"]
[TimeControl "40/5400+30:1800+30"]

1. e4 {[%emt 0:00:00]} e5 {[%emt 0:00:00]} 2. Nf3 {[%emt 0:00:00]} Nc6 {[%emt 0:00:00]} 3. Bc4 {[%emt 0:00:00]} Nf6 {[%emt 0:00:00]} 4. d3 {[%emt 0:00:00]} Bc5 {[%emt 0:00:18]} 5. O-O {[%emt 0:00:14]} d6 {[%emt 0:01:07]} 6. c3 {[%emt 0:00:29]} a6 {[%emt 0:02:23]} 7. Bb3 {[%emt 0:00:52]} Be6 {[%emt 0:03:19]} 8. Nbd2 {[%emt 0:01:37]} O-O {[%emt 0:01:45]} 9. h3 {[%emt 0:01:36]} Ba7 {[%emt 0:03:51]} 10. Re1 {[%emt 0:00:41]} Ne7 {[%emt 0:02:26]} 11. Nf1 {[%emt 0:01:11]} Ng6 {[%emt 0:01:20]} 12. Ng3 {[%emt 0:01:40]} h6 {[%emt 0:05:40]} 13. d4 {[%emt 0:02:40]} Re8 {[%emt 0:06:32]} 14. Be3 {[%emt 0:04:42]} c6 {[%emt 0:13:07]} 15. Qd2 {[%emt 0:02:48]} Bxb3 {[%emt 0:06:40]} 16. axb3 {[%emt 0:00:26]} exd4 {[%emt 0:02:01]} 17. Bxd4 {[%emt 0:01:50]} Ne5 {[%emt 0:03:05]} 18. Nh4 {[%emt 0:11:48]} c5 {[%emt 0:08:29]} 19. Bxe5 {[%emt 0:06:58]} Rxe5 {[%emt 0:02:24]} 20. Nhf5 {[%emt 0:01:26]} d5 {[%emt 0:03:28]} 21. exd5 {[%emt 0:12:36]} Rxd5 {[%emt 0:01:50]} 22. Qf4 {[%emt 0:03:51]} Rd7 {[%emt 0:04:00]} 23. Nxg7 {[%emt 0:11:17]} Qf8 {[%emt 0:07:03]} 24. N7h5 {[%emt 0:01:38]} Nxh5 {[%emt 0:02:19]} 25. Qg4+ {[%emt 0:02:06]} Qg7 {[%emt 0:00:55]} 26. Qxd7 {[%emt 0:00:36]} Nxg3 {[%emt 0:01:40]} 27. fxg3 {[%emt 0:00:18]} Qxg3 {[%emt 0:01:29]} 28. c4 {[%emt 0:02:10]} Bb8 {[%emt 0:02:24]} 29. Qg4+ {[%emt 0:00:51]} Qxg4 {[%emt 0:00:22]} 30. hxg4 {[%emt 0:00:08]} Bf4 {[%emt 0:01:14]} 31. Rad1 {[%emt 0:00:27]} b5 {[%emt 0:00:47]} 32. Re4 {[%emt 0:01:42]} Bg5 {[%emt 0:00:39]} 33. Rd6 {[%emt 0:01:31]} bxc4 {[%emt 0:00:30]} 34. bxc4 {[%emt 0:00:18]} Rb8 {[%emt 0:00:40]} 35. Rxa6 {[%emt 0:00:53]} Rxb2 {[%emt 0:00:14]} 36. Rc6 {[%emt 0:00:57]} Rb3 {[%emt 0:00:44]} 37. Kf2 {[%emt 0:01:18]} Bh4+ {[%emt 0:01:03]} 38. Ke2 {[%emt 0:01:34]} Rb2+ {[%emt 0:00:22]} 39. Kd3 {[%emt 0:00:52]} Rxg2 {[%emt 0:00:27]} 40. Rxc5 {[%emt 0:00:00]} Rg3+ {[%emt 0:00:00]} 41. Kd4 {[%emt 0:02:20]} Kg7 {[%emt 0:02:51]} 42. Rf5 {[%emt 0:02:40]} Kg6 {[%emt 0:01:29]} 43. c5 {[%emt 0:01:23]} Bf6+ {[%emt 0:02:37]} 44. Kd5 {[%emt 0:03:46]} Rc3 {[%emt 0:01:36]} 45. c6 {[%emt 0:00:46]} Bd8 {[%emt 0:01:10]} 46. Rc4 {[%emt 0:00:43]} Rd3+ {[%emt 0:00:29]} 47. Ke4 {[%emt 0:01:00]} Rg3 {[%emt 0:01:16]} 48. c7 {[%emt 0:02:05]} Rxg4+ {[%emt 0:00:12]} 49. Rf4 {[%emt 0:00:08]} Rxf4+ {[%emt 0:00:22]} 50. Kxf4 {[%emt 0:00:06]} Bxc7+ {[%emt 0:00:04]} 51. Rxc7 {[%emt 0:00:07]} h5 {[%emt 0:00:48]} 52. Rc6+ {[%emt 0:00:30]} f6 {[%emt 0:00:11]} 53. Rb6 {[%emt 0:00:09]} 1-0

[Event "WYCC 2018 G14"]
[Site "Halkidiki"]
[Date "2018.10.26"]
[Round "7"]
[White "Toncheva, Nadya"]
[Black "Zeliantsova, Kseniya"]
[Result "1/2-1/2"]
[ECO "E73"]
[WhiteElo "2002"]
[BlackElo "1804"]
[Annotator "NA"]
[PlyCount "105"]
[EventDate "2018.10.20"]
[EventType "swiss"]
[EventCountry "GRE"]
[SourceTitle "playchess.com"]
[Source "ChessBase"]
[SourceQuality "1"]
[TimeControl "40/5400+30:1800+30"]

1. d4 {[%emt 0:00:00]} Nf6 {[%emt 0:00:00]} 2. c4 {[%emt 0:00:00]} g6 {[%emt 0:00:00]} 3. Nc3 {[%emt 0:00:00]} Bg7 {[%emt 0:00:00]} 4. e4 {[%emt 0:00:00]} d6 {[%emt 0:00:00]} 5. Be2 {[%emt 0:00:00]} O-O {[%emt 0:00:00]} 6. Bg5 {[%emt 0:00:00]} Na6 {[%emt 0:00:00]} 7. Qd2 {[%emt 0:00:05]} e5 {[%emt 0:00:08]} 8. d5 {[%emt 0:01:33]} Qe8 {[%emt 0:00:38]} 9. f3 {[%emt 0:00:53]} Nh5 {[%emt 0:03:01]} 10. O-O-O {[%emt 0:04:45]} f5 {[%emt 0:01:05]} 11. exf5 {[%emt 0:06:17]} gxf5 {[%emt 0:01:10]} 12. Bh6 {[%emt 0:00:22]} Qg6 {[%emt 0:09:07]} 13. Bxg7 {[%emt 0:00:12]} Nxg7 {[%emt 0:01:29]} 14. Bd3 {[%emt 0:03:36]} Nc5 {[%emt 0:03:55]} 15. Bc2 {[%emt 0:00:28]} a5 {[%emt 0:01:28]} 16. h4 {[%emt 0:08:05]} Qf6 {[%emt 0:04:06]} 17. Nge2 {[%emt 0:08:13]} f4 {[%emt 0:03:50]} 18. Rdg1 {[%emt 0:06:48]} Bf5 {[%emt 0:10:07]} 19. g4 {[%emt 0:00:42]} fxg3 {[%emt 0:04:03]} 20. Nxg3 {[%emt 0:02:13]} Bxc2 {[%emt 0:02:06]} 21. Nh5 {[%emt 0:02:17]} Qxf3 {[%emt 0:22:30]} 22. Qh6 {[%emt 0:02:09]} Rf7 {[%emt 0:00:21]} 23. Kxc2 {[%emt 0:00:02]} Kh8 {[%emt 0:02:59]} 24. Rxg7 {[%emt 0:08:33]} Qd3+ {[%emt 0:00:51]} 25. Kc1 {[%emt 0:00:06]} Rf2 {[%emt 0:01:50]} 26. Ne2 {[%emt 0:04:29]} Raf8 {[%emt 0:08:10]} 27. Rgg1 {[%emt 0:08:34]} R8f7 {[%emt 0:00:53]} 28. Qg5 {[%emt 0:01:33]} Qxc4+ {[%emt 0:02:22]} 29. Kb1 {[%emt 0:00:35]} Qe4+ {[%emt 0:00:07]} 30. Ka1 {[%emt 0:00:20]} Qg6 {[%emt 0:00:15]} 31. Qd8+ {[%emt 0:02:01]} Rf8 {[%emt 0:00:06]} 32. Qxf8+ {[%emt 0:00:42]} Rxf8 {[%emt 0:00:05]} 33. Rxg6 {[%emt 0:00:01]} hxg6 {[%emt 0:00:05]} 34. Nhg3 {[%emt 0:00:04]} Rf3 {[%emt 0:02:01]} 35. Rg1 {[%emt 0:01:54]} b5 {[%emt 0:01:54]} 36. Nc3 {[%emt 0:06:34]} b4 {[%emt 0:00:06]} 37. Nce4 {[%emt 0:00:17]} Nd3 {[%emt 0:02:32]} 38. Kb1 {[%emt 0:01:50]} Nf4 {[%emt 0:00:20]} 39. Rd1 {[%emt 0:00:15]} a4 {[%emt 0:01:11]} 40. Rd2 {[%emt 0:00:00]} Re3 {[%emt 0:00:00]} 41. Rd1 {[%emt 0:15:49]} b3 {[%emt 0:06:25]} 42. axb3 {[%emt 0:02:06]} axb3 {[%emt 0:00:06]} 43. Kc1 {[%emt 0:01:15]} Nd3+ {[%emt 0:06:49]} 44. Kb1 {[%emt 0:03:26]} Nb4 {[%emt 0:00:11]} 45. h5 {[%emt 0:05:13]} Nxd5 {[%emt 0:03:20]} 46. hxg6 {[%emt 0:00:15]} Ne7 {[%emt 0:00:11]} 47. Kc1 {[%emt 0:06:39]} d5 {[%emt 0:01:43]} 48. Rh1+ {[%emt 0:01:31]} Kg7 {[%emt 0:00:41]} 49. Kd2 {[%emt 0:03:48]} Rf3 {[%emt 0:00:14]} 50. Rh7+ {[%emt 0:09:24]} Kf8 {[%emt 0:01:10]} 51. Rf7+ {[%emt 0:00:39]} Rxf7 {[%emt 0:00:04]} 52. gxf7 {[%emt 0:00:06]} dxe4 {[%emt 0:00:38]} 53. Nxe4 {[%emt 0:00:05]} 1/2-1/2

[Event "WYCC 2018 G14"]
[Site "Halkidiki"]
[Date "2018.10.26"]
[Round "7"]
[White "Kamalidenova, Meruert"]
[Black "Behzad Nazif, Parva"]
[Result "1-0"]
[ECO "A48"]
[WhiteElo "1999"]
[BlackElo "1859"]
[Annotator "NA"]
[PlyCount "89"]
[EventDate "2018.10.20"]
[EventType "swiss"]
[EventCountry "GRE"]
[SourceTitle "playchess.com"]
[Source "ChessBase"]
[SourceQuality "1"]
[TimeControl "40/5400+30:1800+30"]

1. d4 {[%emt 0:00:00]} Nf6 {[%emt 0:00:00]} 2. Nf3 {[%emt 0:00:00]} g6 {[%emt 0:00:00]} 3. c4 {[%emt 0:00:00]} Bg7 {[%emt 0:00:00]} 4. Bg5 {[%emt 0:00:06]} O-O {[%emt 0:00:05]} 5. Nc3 {[%emt 0:00:15]} d6 {[%emt 0:00:06]} 6. e3 {[%emt 0:00:14]} c5 {[%emt 0:00:08]} 7. d5 {[%emt 0:00:33]} h6 {[%emt 0:00:06]} 8. Bh4 {[%emt 0:00:14]} g5 {[%emt 0:00:16]} 9. Bg3 {[%emt 0:00:17]} Nh5 {[%emt 0:00:08]} 10. Nd2 {[%emt 0:01:41]} Nxg3 {[%emt 0:00:13]} 11. hxg3 {[%emt 0:00:37]} Nd7 {[%emt 0:00:17]} 12. Be2 {[%emt 0:01:38]} Nf6 {[%emt 0:00:57]} 13. Qc2 {[%emt 0:01:00]} a6 {[%emt 0:01:09]} 14. f4 {[%emt 0:02:45]} gxf4 {[%emt 0:30:54]} 15. gxf4 {[%emt 0:00:27]} Ng4 {[%emt 0:00:57]} 16. Bxg4 {[%emt 0:04:57]} Bxg4 {[%emt 0:00:14]} 17. Nf3 {[%emt 0:00:51]} Qd7 {[%emt 0:04:06]} 18. Rh4 {[%emt 0:04:14]} h5 {[%emt 0:08:06]} 19. Ng5 {[%emt 0:02:48]} Bf5 {[%emt 0:06:12]} 20. e4 {[%emt 0:01:25]} Bg4 {[%emt 0:02:46]} 21. e5 {[%emt 0:03:01]} Bf5 {[%emt 0:01:51]} 22. Qe2 {[%emt 0:01:15]} Bg4 {[%emt 0:03:14]} 23. Qe4 {[%emt 0:01:50]} Bf5 {[%emt 0:02:13]} 24. Qe3 {[%emt 0:00:36]} dxe5 {[%emt 0:13:21]} 25. fxe5 {[%emt 0:04:14]} Qc7 {[%emt 0:03:30]} 26. Nf3 {[%emt 0:06:41]} Qb6 {[%emt 0:04:00]} 27. Qf2 {[%emt 0:08:04]} Qg6 {[%emt 0:04:19]} 28. Nd1 {[%emt 0:07:18]} Bg4 {[%emt 0:02:59]} 29. Ne3 {[%emt 0:03:59]} Qe4 {[%emt 0:01:03]} 30. Kf1 {[%emt 0:04:12]} f6 {[%emt 0:04:43]} 31. e6 {[%emt 0:05:07]} f5 {[%emt 0:00:27]} 32. Re1 {[%emt 0:01:50]} Qd3+ {[%emt 0:01:21]} 33. Kg1 {[%emt 0:01:37]} Bf6 {[%emt 0:00:54]} 34. Rh2 {[%emt 0:03:08]} f4 {[%emt 0:00:48]} 35. Nxg4 {[%emt 0:07:28]} hxg4 {[%emt 0:00:10]} 36. Ne5 {[%emt 0:00:03]} Qf5 {[%emt 0:01:30]} 37. Qe2 {[%emt 0:00:58]} f3 {[%emt 0:04:22]} 38. gxf3 {[%emt 0:01:36]} g3 {[%emt 0:00:33]} 39. Rg2 {[%emt 0:02:58]} Qh3 {[%emt 0:00:35]} 40. Qd3 {[%emt 0:00:00]} Kh8 {[%emt 0:00:00]} 41. Qg6 {[%emt 0:03:16]} Qh7 {[%emt 0:14:24]} 42. Rxg3 {[%emt 0:02:36]} Bg7 {[%emt 0:05:12]} 43. Nf7+ {[%emt 0:02:02]} Kg8 {[%emt 0:00:16]} 44. Qxh7+ {[%emt 0:00:06]} Kxh7 {[%emt 0:00:07]} 45. Kg2 {[%emt 0:00:05]} 1-0